[Event "*** Titled Tuesday Blitz"]
[Site "Chess.com"]
[Date "2021.04.20"]
[Round "7"]
[White "Grineva_Marianna"]
[Black "Hangar-18"]
[Result "0-1"]
[WhiteElo "2222"]
[BlackElo "2348"]
[TimeControl "180+1"]
[EndTime "11:16:00 PDT"]
[Termination "Hangar-18 won by checkmate"]

1. e4 {[%clk 0:03:00.9]} 1... c6 {[%clk 0:02:59.8]} 2. d4 {[%clk 0:03:00.1]}
2... d5 {[%clk 0:03:00.2]} 3. e5 {[%clk 0:03:00.6]} 3... c5 {[%clk 0:02:59.3]}
4. dxc5 {[%clk 0:02:59.6]} 4... e6 {[%clk 0:02:59.2]} 5. a3 {[%clk 0:02:58.9]}
5... Bxc5 {[%clk 0:02:58.3]} 6. Nf3 {[%clk 0:02:57.5]} 6... Nd7 {[%clk
0:02:56.7]} 7. b4 {[%clk 0:02:57.3]} 7... Be7 {[%clk 0:02:56.1]} 8. Bd3 {[%clk
0:02:46]} 8... a5 {[%clk 0:02:55.8]} 9. b5 {[%clk 0:02:15.6]} 9... f6 {[%clk
0:02:54.7]} 10. Bb2 {[%clk 0:02:13.4]} 10... fxe5 {[%clk 0:02:53.4]} 11. Nxe5
{[%clk 0:02:11.4]} 11... Ngf6 {[%clk 0:02:52.3]} 12. O-O {[%clk 0:02:10.1]}
12... O-O {[%clk 0:02:51.4]} 13. Nd2 {[%clk 0:02:03.6]} 13... Bd6 {[%clk
0:02:46.9]} 14. Ndf3 {[%clk 0:02:02.2]} 14... Qc7 {[%clk 0:02:39.9]} 15. Qe2
{[%clk 0:01:56.5]} 15... Nc5 {[%clk 0:02:29.6]} 16. Rac1 {[%clk 0:01:35.3]}
16... Nfe4 {[%clk 0:02:21.8]} 17. h3 {[%clk 0:01:14.5]} 17... a4 {[%clk
0:02:04.3]} 18. Qe3 {[%clk 0:01:06.8]} 18... Qe7 {[%clk 0:01:48.3]} 19. c4
{[%clk 0:01:03.4]} 19... Nxd3 {[%clk 0:01:36.7]} 20. Qxd3 {[%clk 0:01:00.7]}
20... Nc5 {[%clk 0:01:31.7]} 21. Qe3 {[%clk 0:00:57.1]} 21... Ne4 {[%clk
0:01:01.9]} 22. Nd3 {[%clk 0:00:20.6]} 22... b6 {[%clk 0:00:58.2]} 23. cxd5
{[%clk 0:00:18.9]} 23... exd5 {[%clk 0:00:58]} 24. Rfe1 {[%clk 0:00:19.3]} 24...
Bd7 {[%clk 0:00:41.3]} 25. Qxb6 {[%clk 0:00:19]} 25... Rab8 {[%clk 0:00:36.1]}
26. Qd4 {[%clk 0:00:19.2]} 26... Be6 {[%clk 0:00:33.1]} 27. b6 {[%clk
0:00:17.7]} 27... Rxf3 {[%clk 0:00:29.5]} 28. gxf3 {[%clk 0:00:17.2]} 28... Qg5+
{[%clk 0:00:29.5]} 29. Kf1 {[%clk 0:00:16.8]} 29... Bxh3+ {[%clk 0:00:25.9]} 30.
Ke2 {[%clk 0:00:17.1]} 30... Qd2# {[%clk 0:00:26.4]} 0-1

[Event "*** Titled Tuesday Blitz"]
[Site "Chess.com"]
[Date "2021.04.20"]
[Round "7"]
[White "ChampStan"]
[Black "NONmaster99"]
[Result "1-0"]
[WhiteElo "2102"]
[BlackElo "2298"]
[TimeControl "180+1"]
[EndTime "11:16:03 PDT"]
[Termination "ChampStan won by checkmate"]

1. d4 {[%clk 0:03:00.9]} 1... g6 {[%clk 0:02:59.4]} 2. c4 {[%clk 0:02:58]} 2...
Bg7 {[%clk 0:02:59.4]} 3. Nf3 {[%clk 0:02:58.6]} 3... c5 {[%clk 0:02:59.1]} 4.
g3 {[%clk 0:02:55.7]} 4... cxd4 {[%clk 0:02:58.1]} 5. Nxd4 {[%clk 0:02:55.5]}
5... Nc6 {[%clk 0:02:59]} 6. e3 {[%clk 0:02:48.5]} 6... Nf6 {[%clk 0:02:57.3]}
7. Bg2 {[%clk 0:02:46.8]} 7... O-O {[%clk 0:02:56.9]} 8. O-O {[%clk 0:02:46.7]}
8... Nxd4 {[%clk 0:02:57.5]} 9. exd4 {[%clk 0:02:46.2]} 9... d5 {[%clk
0:02:57.9]} 10. cxd5 {[%clk 0:02:42.3]} 10... Nxd5 {[%clk 0:02:58.8]} 11. Nc3
{[%clk 0:02:42.5]} 11... Be6 {[%clk 0:02:55.3]} 12. Re1 {[%clk 0:02:17.7]} 12...
Rc8 {[%clk 0:02:45.1]} 13. Bg5 {[%clk 0:01:47.1]} 13... h6 {[%clk 0:02:27.6]}
14. Bxd5 {[%clk 0:01:37.7]} 14... hxg5 {[%clk 0:01:58]} 15. Bxe6 {[%clk
0:01:33.8]} 15... fxe6 {[%clk 0:01:58.9]} 16. Rxe6 {[%clk 0:01:24.5]} 16... Qxd4
{[%clk 0:01:35.2]} 17. Qe2 {[%clk 0:01:10.1]} 17... Rf6 {[%clk 0:01:00.1]} 18.
Rxe7 {[%clk 0:00:50.5]} 18... Rcf8 {[%clk 0:00:57.5]} 19. Ne4 {[%clk 0:00:49.7]}
19... Rf3 {[%clk 0:00:43.3]} 20. Rd1 {[%clk 0:00:43.9]} 20... Qxb2 {[%clk
0:00:21.7]} 21. Qc4+ {[%clk 0:00:41.4]} 21... Kh8 {[%clk 0:00:18.2]} 22. Rf1
{[%clk 0:00:28.2]} 22... Bd4 {[%clk 0:00:15.3]} 23. Nxg5 {[%clk 0:00:17.5]}
23... Rxf2 {[%clk 0:00:13.3]} 24. Rh7# {[%clk 0:00:15.6]} 1-0

[Event "*** Titled Tuesday Blitz"]
[Site "Chess.com"]
[Date "2021.04.20"]
[Round "7"]
[White "Cuajada_Zero"]
[Black "MIJuanReyesRosa"]
[Result "1-0"]
[WhiteElo "2306"]
[BlackElo "2042"]
[TimeControl "180+1"]
[EndTime "11:16:08 PDT"]
[Termination "Cuajada_Zero won on time"]

1. d4 {[%clk 0:03:00.9]} 1... e6 {[%clk 0:02:57.7]} 2. c4 {[%clk 0:03:00]} 2...
a6 {[%clk 0:02:57.6]} 3. Nc3 {[%clk 0:02:59.4]} 3... c5 {[%clk 0:02:57.1]} 4. d5
{[%clk 0:02:59.2]} 4... exd5 {[%clk 0:02:56.9]} 5. cxd5 {[%clk 0:03:00.1]} 5...
b5 {[%clk 0:02:55.4]} 6. g3 {[%clk 0:02:59.5]} 6... d6 {[%clk 0:02:54.8]} 7. Bg2
{[%clk 0:02:59.8]} 7... Nf6 {[%clk 0:02:54.5]} 8. Nf3 {[%clk 0:02:53.5]} 8... g6
{[%clk 0:02:53.6]} 9. O-O {[%clk 0:02:53.7]} 9... Bg7 {[%clk 0:02:53.4]} 10. a4
{[%clk 0:02:54]} 10... b4 {[%clk 0:02:46.8]} 11. Nb1 {[%clk 0:02:51.3]} 11...
O-O {[%clk 0:02:43.4]} 12. Nfd2 {[%clk 0:02:50.1]} 12... Nbd7 {[%clk 0:02:37.7]}
13. Nc4 {[%clk 0:02:49.9]} 13... Nb6 {[%clk 0:02:16.1]} 14. Nxb6 {[%clk
0:02:41.4]} 14... Qxb6 {[%clk 0:02:15.6]} 15. Nd2 {[%clk 0:02:41.4]} 15... Bb7
{[%clk 0:01:59]} 16. Nc4 {[%clk 0:02:40.6]} 16... Qc7 {[%clk 0:01:58.2]} 17. e4
{[%clk 0:02:31.2]} 17... Rfe8 {[%clk 0:01:52.2]} 18. Re1 {[%clk 0:02:28.6]}
18... Nd7 {[%clk 0:01:38.1]} 19. Bf4 {[%clk 0:02:20.7]} 19... Ne5 {[%clk
0:01:33.1]} 20. Bxe5 {[%clk 0:02:20.6]} 20... Bxe5 {[%clk 0:01:24.9]} 21. a5
{[%clk 0:02:19.6]} 21... Re7 {[%clk 0:01:09.2]} 22. h3 {[%clk 0:02:17.3]} 22...
Rae8 {[%clk 0:01:05.2]} 23. Kh2 {[%clk 0:02:17.3]} 23... Bd4 {[%clk 0:01:00.6]}
24. Qd2 {[%clk 0:02:03]} 24... Bc8 {[%clk 0:00:50.2]} 25. f4 {[%clk 0:01:21.9]}
25... Bd7 {[%clk 0:00:49.4]} 26. e5 {[%clk 0:01:20.3]} 26... Bb5 {[%clk
0:00:19.5]} 27. Nxd6 {[%clk 0:00:54.2]} 27... Bxe5 {[%clk 0:00:07.4]} 28. Nxe8
{[%clk 0:00:46.9]} 28... Rxe8 {[%clk 0:00:05.6]} 29. fxe5 {[%clk 0:00:44.9]}
29... Rxe5 {[%clk 0:00:05.6]} 30. d6 {[%clk 0:00:42.7]} 1-0

[Event "*** Titled Tuesday Blitz"]
[Site "Chess.com"]
[Date "2021.04.20"]
[Round "7"]
[White "northridgehawk"]
[Black "DrCeltic"]
[Result "1-0"]
[WhiteElo "2334"]
[BlackElo "2479"]
[TimeControl "180+1"]
[EndTime "11:16:09 PDT"]
[Termination "northridgehawk won by checkmate"]

1. e4 {[%clk 0:02:59.4]} 1... c5 {[%clk 0:02:57.8]} 2. Nf3 {[%clk 0:02:57.9]}
2... e6 {[%clk 0:02:57.6]} 3. d4 {[%clk 0:02:58.2]} 3... cxd4 {[%clk 0:02:57.8]}
4. Nxd4 {[%clk 0:02:59.1]} 4... a6 {[%clk 0:02:58.5]} 5. c3 {[%clk 0:02:58.2]}
5... d6 {[%clk 0:02:55.9]} 6. g3 {[%clk 0:02:58.1]} 6... Nf6 {[%clk 0:02:55.9]}
7. Bg2 {[%clk 0:02:58.4]} 7... Be7 {[%clk 0:02:55.3]} 8. O-O {[%clk 0:02:58.6]}
8... O-O {[%clk 0:02:55.8]} 9. a4 {[%clk 0:02:56.3]} 9... Qc7 {[%clk 0:02:55.7]}
10. Na3 {[%clk 0:02:55.5]} 10... Bd7 {[%clk 0:02:55.3]} 11. h3 {[%clk
0:02:55.6]} 11... Nc6 {[%clk 0:02:55.3]} 12. Ne2 {[%clk 0:02:50.8]} 12... Rac8
{[%clk 0:02:49]} 13. Be3 {[%clk 0:02:49.6]} 13... Ne5 {[%clk 0:02:44.2]} 14. Nd4
{[%clk 0:02:39.7]} 14... Rfd8 {[%clk 0:02:25.7]} 15. f4 {[%clk 0:02:31.2]} 15...
Nc4 {[%clk 0:02:21.4]} 16. Nxc4 {[%clk 0:02:27.2]} 16... Qxc4 {[%clk 0:02:22.3]}
17. a5 {[%clk 0:02:24.9]} 17... Bf8 {[%clk 0:02:12.3]} 18. Rf2 {[%clk
0:02:24.3]} 18... Be8 {[%clk 0:01:40.6]} 19. Rd2 {[%clk 0:02:24.1]} 19... e5
{[%clk 0:01:36.4]} 20. fxe5 {[%clk 0:01:53.4]} 20... dxe5 {[%clk 0:01:32.8]} 21.
Nf3 {[%clk 0:01:53.8]} 21... Rxd2 {[%clk 0:01:26.5]} 22. Nxd2 {[%clk 0:01:54.7]}
22... Qd3 {[%clk 0:01:10]} 23. Qe1 {[%clk 0:01:46.8]} 23... Qb5 {[%clk
0:00:56.1]} 24. Qb1 {[%clk 0:01:34.9]} 24... Bc5 {[%clk 0:00:52.2]} 25. Nf1
{[%clk 0:01:29.4]} 25... Bxe3+ {[%clk 0:00:36.3]} 26. Nxe3 {[%clk 0:01:30.3]}
26... Bc6 {[%clk 0:00:28.4]} 27. Kh2 {[%clk 0:01:22.5]} 27... Qe2 {[%clk
0:00:25.5]} 28. Qe1 {[%clk 0:01:12.9]} 28... Qxb2 {[%clk 0:00:22.3]} 29. Rb1
{[%clk 0:01:07.6]} 29... Qa2 {[%clk 0:00:20.5]} 30. Ra1 {[%clk 0:00:55.8]} 30...
Qb2 {[%clk 0:00:17.1]} 31. Rb1 {[%clk 0:00:55.7]} 31... Qa3 {[%clk 0:00:16.1]}
32. Nf5 {[%clk 0:00:53.2]} 32... g6 {[%clk 0:00:14.6]} 33. Nh6+ {[%clk
0:00:49.7]} 33... Kg7 {[%clk 0:00:14.5]} 34. Qe3 {[%clk 0:00:48.1]} 34... Bb5
{[%clk 0:00:07.3]} 35. Nf5+ {[%clk 0:00:45.4]} 35... gxf5 {[%clk 0:00:05]} 36.
Qg5+ {[%clk 0:00:45.7]} 36... Kf8 {[%clk 0:00:05.6]} 37. Qxf6 {[%clk 0:00:45.9]}
37... Qe7 {[%clk 0:00:04]} 38. Qh8# {[%clk 0:00:44.8]} 1-0

[Event "*** Titled Tuesday Blitz"]
[Site "Chess.com"]
[Date "2021.04.20"]
[Round "7"]
[White "suyu28"]
[Black "Aslanov_Umid"]
[Result "1-0"]
[WhiteElo "2610"]
[BlackElo "2464"]
[TimeControl "180+1"]
[EndTime "11:16:14 PDT"]
[Termination "suyu28 won on time"]

1. d4 {[%clk 0:03:00.9]} 1... d5 {[%clk 0:03:00.3]} 2. c4 {[%clk 0:03:01.3]}
2... e6 {[%clk 0:03:00.5]} 3. Nc3 {[%clk 0:03:01.7]} 3... c6 {[%clk 0:03:01]} 4.
e4 {[%clk 0:03:01.4]} 4... dxe4 {[%clk 0:03:01.3]} 5. Nxe4 {[%clk 0:03:02.3]}
5... Bb4+ {[%clk 0:03:01.9]} 6. Nc3 {[%clk 0:03:02.5]} 6... c5 {[%clk
0:03:01.7]} 7. Nf3 {[%clk 0:03:02.2]} 7... Nf6 {[%clk 0:03:01.6]} 8. Be3 {[%clk
0:03:01.7]} 8... O-O {[%clk 0:03:00.6]} 9. a3 {[%clk 0:02:59.1]} 9... Ba5 {[%clk
0:02:57.2]} 10. dxc5 {[%clk 0:02:58.8]} 10... Bxc3+ {[%clk 0:02:57]} 11. bxc3
{[%clk 0:02:58.6]} 11... Qa5 {[%clk 0:02:57.6]} 12. Qb3 {[%clk 0:02:56.5]} 12...
Na6 {[%clk 0:02:40.8]} 13. Be2 {[%clk 0:02:53.9]} 13... Nxc5 {[%clk 0:02:39.3]}
14. Qb4 {[%clk 0:02:54]} 14... Qxb4 {[%clk 0:02:30.7]} 15. cxb4 {[%clk
0:02:48.7]} 15... Nce4 {[%clk 0:02:28]} 16. Rc1 {[%clk 0:02:48.6]} 16... Bd7
{[%clk 0:02:25.4]} 17. O-O {[%clk 0:02:47.3]} 17... a6 {[%clk 0:02:15.5]} 18.
Ne5 {[%clk 0:02:46.2]} 18... Bc6 {[%clk 0:02:13.6]} 19. Rfd1 {[%clk 0:02:41.3]}
19... Rfd8 {[%clk 0:01:51.5]} 20. Rxd8+ {[%clk 0:02:32.5]} 20... Rxd8 {[%clk
0:01:52.4]} 21. Nxc6 {[%clk 0:02:32.8]} 21... bxc6 {[%clk 0:01:51.6]} 22. Rd1
{[%clk 0:02:33.7]} 22... Rxd1+ {[%clk 0:01:47]} 23. Bxd1 {[%clk 0:02:34.6]}
23... Nd7 {[%clk 0:01:27.5]} 24. c5 {[%clk 0:02:30.6]} 24... Nc3 {[%clk
0:01:18.8]} 25. Bc2 {[%clk 0:02:23.4]} 25... Ne5 {[%clk 0:01:14.8]} 26. Kf1
{[%clk 0:02:14.7]} 26... Nc4 {[%clk 0:01:13.3]} 27. Bc1 {[%clk 0:02:08.4]} 27...
Nb5 {[%clk 0:00:31.4]} 28. a4 {[%clk 0:01:28.7]} 28... Nc7 {[%clk 0:00:30.4]}
29. Ke2 {[%clk 0:01:16.9]} 29... f6 {[%clk 0:00:26.2]} 30. Be4 {[%clk
0:01:12.4]} 30... Nd5 {[%clk 0:00:21.2]} 31. Bd3 {[%clk 0:01:12.5]} 31... Ne5
{[%clk 0:00:16.2]} 32. Bxa6 {[%clk 0:01:07.5]} 32... Nxb4 {[%clk 0:00:14.8]} 33.
Bb7 {[%clk 0:01:08]} 33... Kf7 {[%clk 0:00:12.3]} 34. a5 {[%clk 0:01:08.1]}
34... Nd5 {[%clk 0:00:03]} 35. a6 {[%clk 0:01:04.7]} 35... Nc7 {[%clk
0:00:03.5]} 36. Bf4 {[%clk 0:00:58.1]} 36... Ke7 {[%clk 0:00:01]} 37. a7 {[%clk
0:00:57.1]} 1-0

[Event "*** Titled Tuesday Blitz"]
[Site "Chess.com"]
[Date "2021.04.20"]
[Round "7"]
[White "GMJustin"]
[Black "Joseacorrea"]
[Result "0-1"]
[WhiteElo "2297"]
[BlackElo "2083"]
[TimeControl "180+1"]
[EndTime "11:16:14 PDT"]
[Termination "Joseacorrea won on time"]

1. d4 {[%clk 0:02:52.8]} 1... e6 {[%clk 0:02:59.8]} 2. e4 {[%clk 0:02:51.8]}
2... c5 {[%clk 0:02:57.7]} 3. d5 {[%clk 0:02:47.3]} 3... exd5 {[%clk 0:02:58.6]}
4. exd5 {[%clk 0:02:47.1]} 4... d6 {[%clk 0:02:59]} 5. Nf3 {[%clk 0:02:32.2]}
5... Nf6 {[%clk 0:02:59.4]} 6. Be2 {[%clk 0:02:17.4]} 6... Bg4 {[%clk
0:02:54.8]} 7. O-O {[%clk 0:02:12.9]} 7... Bxf3 {[%clk 0:02:53.2]} 8. Bxf3
{[%clk 0:02:12.5]} 8... g6 {[%clk 0:02:53.9]} 9. Re1+ {[%clk 0:01:58.9]} 9...
Be7 {[%clk 0:02:48.2]} 10. Bh6 {[%clk 0:01:59.1]} 10... Nbd7 {[%clk 0:02:47.8]}
11. Nc3 {[%clk 0:01:56.1]} 11... a6 {[%clk 0:02:46.3]} 12. a4 {[%clk 0:01:55.1]}
12... Qc7 {[%clk 0:02:40.7]} 13. a5 {[%clk 0:01:39.5]} 13... Ne5 {[%clk
0:02:31.3]} 14. g3 {[%clk 0:01:16.8]} 14... Bf8 {[%clk 0:02:30.5]} 15. Rxe5+
{[%clk 0:00:52.5]} 15... dxe5 {[%clk 0:02:26.6]} 16. d6 {[%clk 0:00:52.5]} 16...
Qxd6 {[%clk 0:02:07.4]} 17. Qxd6 {[%clk 0:00:49.4]} 17... Bxd6 {[%clk
0:02:08.3]} 18. Bg7 {[%clk 0:00:49.6]} 18... Ke7 {[%clk 0:02:02.6]} 19. Bxb7
{[%clk 0:00:39]} 19... Rhb8 {[%clk 0:01:57.8]} 20. Bxa8 {[%clk 0:00:19.1]} 20...
Rxa8 {[%clk 0:01:58.7]} 21. Rd1 {[%clk 0:00:18.9]} 21... Nh5 {[%clk 0:01:56.5]}
22. Nd5+ {[%clk 0:00:14.7]} 22... Ke6 {[%clk 0:01:54.6]} 23. Bh6 {[%clk
0:00:14.7]} 23... Rb8 {[%clk 0:01:53.8]} 24. Nb6 {[%clk 0:00:14.6]} 24... Bc7
{[%clk 0:01:48.4]} 25. Nc4 {[%clk 0:00:14.2]} 25... Rd8 {[%clk 0:01:45.5]} 26.
Rxd8 {[%clk 0:00:13]} 26... Bxd8 {[%clk 0:01:46.4]} 27. Kf1 {[%clk 0:00:12.2]}
27... Nf6 {[%clk 0:01:45.1]} 28. Be3 {[%clk 0:00:11.3]} 28... Kd5 {[%clk
0:01:40.7]} 29. b3 {[%clk 0:00:11.5]} 29... Nd7 {[%clk 0:01:39.5]} 30. Ke2
{[%clk 0:00:11.6]} 30... f5 {[%clk 0:01:37.6]} 31. f3 {[%clk 0:00:11.6]} 31...
g5 {[%clk 0:01:29.6]} 32. Bd2 {[%clk 0:00:11.3]} 32... f4 {[%clk 0:01:27.5]} 33.
Bc3 {[%clk 0:00:08.1]} 33... Bc7 {[%clk 0:01:25.2]} 34. Nd2 {[%clk 0:00:08]}
34... Nf6 {[%clk 0:01:21.9]} 35. Kd3 {[%clk 0:00:06.6]} 35... fxg3 {[%clk
0:01:20.1]} 36. hxg3 {[%clk 0:00:06.5]} 36... h5 {[%clk 0:01:19.3]} 37. Ne4
{[%clk 0:00:05.9]} 37... Nxe4 {[%clk 0:01:17.1]} 38. fxe4+ {[%clk 0:00:06.2]}
38... Ke6 {[%clk 0:01:15.4]} 39. Bd2 {[%clk 0:00:06.2]} 39... h4 {[%clk
0:01:13]} 40. gxh4 {[%clk 0:00:05.1]} 40... gxh4 {[%clk 0:01:12.4]} 41. Be1
{[%clk 0:00:05.4]} 41... h3 {[%clk 0:01:12]} 42. Bg3 {[%clk 0:00:05.9]} 42...
Bd8 {[%clk 0:01:11.7]} 43. Ke2 {[%clk 0:00:04.5]} 43... Bh4 {[%clk 0:01:10.2]}
44. Bh2 {[%clk 0:00:03.2]} 44... Bg5 {[%clk 0:01:05.5]} 45. Kf3 {[%clk
0:00:03.1]} 45... Bf4 {[%clk 0:01:05.1]} 46. Bg1 {[%clk 0:00:01.4]} 46... h2
{[%clk 0:01:04.1]} 47. Bxh2 {[%clk 0:00:01.3]} 47... Bxh2 {[%clk 0:01:04.7]} 0-1

[Event "*** Titled Tuesday Blitz"]
[Site "Chess.com"]
[Date "2021.04.20"]
[Round "7"]
[White "Didici"]
[Black "anon102030"]
[Result "0-1"]
[WhiteElo "2595"]
[BlackElo "2733"]
[TimeControl "180+1"]
[EndTime "11:16:17 PDT"]
[Termination "anon102030 won by resignation"]

1. e4 {[%clk 0:03:00.9]} 1... e5 {[%clk 0:02:59.5]} 2. Nf3 {[%clk 0:03:00.4]}
2... Nc6 {[%clk 0:02:59.7]} 3. Bc4 {[%clk 0:02:56.4]} 3... Bc5 {[%clk
0:02:59.8]} 4. c3 {[%clk 0:02:55.2]} 4... Nf6 {[%clk 0:02:59.9]} 5. d4 {[%clk
0:02:55.1]} 5... exd4 {[%clk 0:03:00.8]} 6. e5 {[%clk 0:02:55.2]} 6... d5 {[%clk
0:02:59.6]} 7. Bb5 {[%clk 0:02:55.3]} 7... Ne4 {[%clk 0:02:58.8]} 8. cxd4 {[%clk
0:02:55.3]} 8... Bb6 {[%clk 0:02:58.6]} 9. Nc3 {[%clk 0:02:54.9]} 9... O-O
{[%clk 0:02:54.4]} 10. Be3 {[%clk 0:02:53]} 10... Bg4 {[%clk 0:02:53.4]} 11. h3
{[%clk 0:02:44.3]} 11... Bxf3 {[%clk 0:02:51.3]} 12. gxf3 {[%clk 0:02:41.6]}
12... Nxc3 {[%clk 0:02:50.9]} 13. bxc3 {[%clk 0:02:42.5]} 13... f6 {[%clk
0:02:29.2]} 14. f4 {[%clk 0:02:21.8]} 14... Ne7 {[%clk 0:02:26.4]} 15. Bd3
{[%clk 0:02:09.9]} 15... Qd7 {[%clk 0:02:20]} 16. Qg4 {[%clk 0:02:06]} 16... f5
{[%clk 0:02:12.6]} 17. Qg5 {[%clk 0:01:55.8]} 17... Ba5 {[%clk 0:02:02.9]} 18.
Rc1 {[%clk 0:01:51.4]} 18... c5 {[%clk 0:01:55.6]} 19. Ke2 {[%clk 0:01:32.1]}
19... c4 {[%clk 0:01:42.6]} 20. Bb1 {[%clk 0:01:24]} 20... b5 {[%clk 0:01:42.8]}
21. a3 {[%clk 0:01:23.8]} 21... Bd8 {[%clk 0:01:38.6]} 22. h4 {[%clk 0:01:14.7]}
22... a5 {[%clk 0:01:34.2]} 23. h5 {[%clk 0:01:14.6]} 23... Nc6 {[%clk
0:01:27.7]} 24. Qg2 {[%clk 0:01:12.5]} 24... b4 {[%clk 0:01:27.8]} 25. axb4
{[%clk 0:01:12.1]} 25... axb4 {[%clk 0:01:27.6]} 26. cxb4 {[%clk 0:01:13]} 26...
Nxb4 {[%clk 0:01:21]} 27. Rxc4 {[%clk 0:01:08.6]} 27... Qb5 {[%clk 0:01:04.5]}
28. Rc1 {[%clk 0:00:55.1]} 28... Rc8 {[%clk 0:01:04.4]} 29. Kf3 {[%clk 0:00:26]}
29... Rxc4 {[%clk 0:00:58.3]} 30. Rg1 {[%clk 0:00:24.5]} 30... Rc7 {[%clk
0:00:52.4]} 31. Qh3 {[%clk 0:00:23.1]} 31... Nc2 {[%clk 0:00:47.3]} 32. h6
{[%clk 0:00:14.6]} 32... g6 {[%clk 0:00:44.5]} 33. Qh5 {[%clk 0:00:14.5]} 33...
Qd3 {[%clk 0:00:36.6]} 34. Rxg6+ {[%clk 0:00:14.1]} 34... hxg6 {[%clk
0:00:36.7]} 35. Qxg6+ {[%clk 0:00:15]} 35... Kh8 {[%clk 0:00:37.4]} 36. Bxc2
{[%clk 0:00:14.8]} 36... Qxc2 {[%clk 0:00:33.9]} 37. h7 {[%clk 0:00:12.7]} 37...
Qe4+ {[%clk 0:00:32.4]} 38. Kg3 {[%clk 0:00:11.9]} 38... Rg7 {[%clk 0:00:30.7]}
0-1

[Event "*** Titled Tuesday Blitz"]
[Site "Chess.com"]
[Date "2021.04.20"]
[Round "7"]
[White "WinstonSilvakov"]
[Black "Chernov_Alexander_A"]
[Result "0-1"]
[WhiteElo "2076"]
[BlackElo "2294"]
[TimeControl "180+1"]
[EndTime "11:16:18 PDT"]
[Termination "Chernov_Alexander_A won by resignation"]

1. d4 {[%clk 0:03:00.9]} 1... Nf6 {[%clk 0:02:58.7]} 2. e3 {[%clk 0:02:59.8]}
2... e6 {[%clk 0:02:58.2]} 3. Bd3 {[%clk 0:02:58.2]} 3... d5 {[%clk 0:02:57.5]}
4. Nd2 {[%clk 0:02:57.2]} 4... c5 {[%clk 0:02:56.9]} 5. c3 {[%clk 0:02:57.1]}
5... Be7 {[%clk 0:02:54.2]} 6. f4 {[%clk 0:02:56.8]} 6... O-O {[%clk 0:02:52.2]}
7. Ngf3 {[%clk 0:02:56.7]} 7... b6 {[%clk 0:02:52.1]} 8. Qe2 {[%clk 0:02:49.9]}
8... Bb7 {[%clk 0:02:51.6]} 9. Ne5 {[%clk 0:02:48.9]} 9... Nbd7 {[%clk
0:02:48.5]} 10. O-O {[%clk 0:02:47.3]} 10... Ne4 {[%clk 0:02:48.3]} 11. Nxe4
{[%clk 0:02:44.8]} 11... dxe4 {[%clk 0:02:47.3]} 12. Bc2 {[%clk 0:02:40.4]}
12... f6 {[%clk 0:02:38.5]} 13. Nxd7 {[%clk 0:02:30.5]} 13... Qxd7 {[%clk
0:02:38]} 14. Bd2 {[%clk 0:02:29.8]} 14... cxd4 {[%clk 0:02:25.5]} 15. exd4
{[%clk 0:02:25.1]} 15... f5 {[%clk 0:02:24.5]} 16. Be3 {[%clk 0:02:21.6]} 16...
h6 {[%clk 0:02:19]} 17. Bb3 {[%clk 0:01:59]} 17... Kh7 {[%clk 0:02:16.4]} 18. g4
{[%clk 0:01:55]} 18... g6 {[%clk 0:02:10.4]} 19. gxf5 {[%clk 0:01:51.6]} 19...
gxf5 {[%clk 0:02:09.2]} 20. Kh1 {[%clk 0:01:46]} 20... Rg8 {[%clk 0:02:08.7]}
21. Rg1 {[%clk 0:01:45.2]} 21... Bd5 {[%clk 0:01:49.5]} 22. Rxg8 {[%clk
0:01:34.9]} 22... Rxg8 {[%clk 0:01:47.9]} 23. Rg1 {[%clk 0:01:29.5]} 23... Rxg1+
{[%clk 0:01:45.6]} 24. Kxg1 {[%clk 0:01:28.2]} 24... Bf6 {[%clk 0:01:44]} 25.
Qh5 {[%clk 0:01:22.3]} 25... Qg7+ {[%clk 0:01:40]} 26. Kf2 {[%clk 0:01:15]}
26... Qg6 {[%clk 0:01:39]} 27. Qxg6+ {[%clk 0:01:13.9]} 27... Kxg6 {[%clk
0:01:38.4]} 28. c4 {[%clk 0:01:11.5]} 28... Bb7 {[%clk 0:01:35.5]} 29. Ba4
{[%clk 0:01:10.6]} 29... Kf7 {[%clk 0:01:29.3]} 30. b4 {[%clk 0:01:06.7]} 30...
Bh4+ {[%clk 0:01:24.1]} 31. Ke2 {[%clk 0:01:05.2]} 31... Be7 {[%clk 0:01:16.6]}
32. c5 {[%clk 0:01:03.5]} 32... bxc5 {[%clk 0:01:13.3]} 33. bxc5 {[%clk
0:01:04.4]} 33... Bd5 {[%clk 0:01:12.3]} 34. Bb3 {[%clk 0:00:59.2]} 34... Bd8
{[%clk 0:01:10.9]} 35. Kd2 {[%clk 0:00:51.6]} 35... Ba5+ {[%clk 0:01:03.8]} 36.
Kc2 {[%clk 0:00:51.1]} 36... Ke7 {[%clk 0:01:02.4]} 37. Bxd5 {[%clk 0:00:35.8]}
37... exd5 {[%clk 0:01:01.3]} 38. Kb3 {[%clk 0:00:36.4]} 38... a6 {[%clk
0:00:58.7]} 39. Ka4 {[%clk 0:00:36.5]} 39... Be1 {[%clk 0:00:57.5]} 40. Kb3
{[%clk 0:00:36.2]} 40... Kd7 {[%clk 0:00:56.4]} 41. a4 {[%clk 0:00:33.9]} 41...
Kc6 {[%clk 0:00:55.4]} 42. Kc2 {[%clk 0:00:32.7]} 42... h5 {[%clk 0:00:53.5]}
43. Bd2 {[%clk 0:00:32.9]} 43... Bh4 {[%clk 0:00:50.4]} 44. Kb3 {[%clk
0:00:31.1]} 44... Bf2 {[%clk 0:00:48.4]} 45. Kc2 {[%clk 0:00:31.3]} 45... e3
{[%clk 0:00:46.4]} 46. Bc3 {[%clk 0:00:29.5]} 46... e2 {[%clk 0:00:45.8]} 0-1